[Event "26th Zadar Open 2019"]
[Site "Zadar"]
[Date "2019.12.21"]
[Round "8.18"]
[White "Manush Shah"]
[Black "Krasteva, Beloslava"]
[Result "1/2-1/2"]
[ECO "E14"]
[WhiteElo "2341"]
[BlackElo "2264"]
[Annotator "NA"]
[PlyCount "85"]
[EventDate "2019.12.15"]
[EventType "swiss"]
[EventCountry "CRO"]
[SourceTitle "playchess.com"]
[Source "ChessBase"]
[SourceQuality "1"]
[TimeControl "40/5400+30:1800+30"]

1. d4 {[%emt 0:02:30]} Nf6 {[%emt 0:00:30]} 2. Nf3 {[%emt 0:00:00]} e6 {[%emt 0:00:30]} 3. e3 {[%emt 0:00:00]} d5 {[%emt 0:00:30]} 4. c4 {[%emt 0:00:30]} b6 $11 {[%emt 0:00:30]} 5. Nc3 {[%emt 0:00:00]} Bb7 {[%emt 0:01:30]} 6. cxd5 {[%emt 0:01:00]} exd5 {[%emt 0:00:30]} 7. Bd3 {[%emt 0:00:00]} Bd6 {[%emt 0:00:30]} 8. O-O {[%emt 0:00:00]} O-O {[%emt 0:00:00]} 9. Qc2 {[%emt 0:03:30]} c5 {[%emt 0:02:00]} 10. b3 {[%emt 0:00:00]} Re8 {[%emt 0:00:30]} 11. Nb5 {[%emt 0:01:00]} Bf8 {[%emt 0:03:30]} 12. Bb2 {[%emt 0:01:30]} a6 {[%emt 0:03:30]} 13. Nc3 {[%emt 0:00:30]} Nc6 {[%emt 0:00:30]} 14. a3 {[%emt 0:00:30]} cxd4 {[%emt 0:02:30]} 15. exd4 {[%emt 0:01:30]} Na5 {[%emt 0:02:30]} 16. Rfe1 {[%emt 0:12:30]} Rc8 {[%emt 0:02:30]} 17. Rxe8 {[%emt 0:08:30]} Qxe8 {[%emt 0:00:30]} 18. Re1 {[%emt 0:05:30]} Qd8 {[%emt 0:01:30]} 19. Qd1 {[%emt 0:05:30]} Bd6 {[%emt 0:06:30]} 20. Ne2 {[%emt 0:03:30]} Qf8 {[%emt 0:02:30]} 21. b4 {[%emt 0:08:30]} Nc4 {[%emt 0:01:30]} 22. Bc1 {[%emt 0:00:00]} g6 {[%emt 0:12:30]} 23. Ng3 {[%emt 0:01:00]} Re8 {[%emt 0:02:30]} 24. Nd2 {[%emt 0:04:30]} b5 {[%emt 0:05:30]} 25. Nb3 {[%emt 0:00:30]} h5 {[%emt 0:03:30]} 26. Rxe8 {[%emt 0:05:30]} Qxe8 {[%emt 0:00:00]} 27. Qe2 {[%emt 0:00:30]} Qxe2 {[%emt 0:08:00]} 28. Nxe2 {[%emt 0:01:30]} Nd7 {[%emt 0:05:30]} 29. Nc3 {[%emt 0:01:30]} Ndb6 {[%emt 0:00:30]} 30. Be2 {[%emt 0:01:30]} Be7 {[%emt 0:01:30]} 31. Nc5 {[%emt 0:01:30]} Bc8 {[%emt 0:00:00]} 32. Bf3 {[%emt 0:00:30]} Bf6 {[%emt 0:01:00]} 33. Nxd5 {[%emt 0:01:30]} Nxd5 {[%emt 0:00:30]} 34. Bxd5 {[%emt 0:00:00]} Bxd4 {[%emt 0:00:30]} 35. Kf1 {[%emt 0:02:00]} Kf8 {[%emt 0:09:30]} 36. Ke2 {[%emt 0:01:30]} Ke7 {[%emt 0:01:30]} 37. f3 {[%emt 0:00:30]} Nb6 {[%emt 0:02:01]} 38. Bb3 {[%emt 0:02:30]} Nd7 {[%emt 0:05:12]} 39. Nxd7 {[%emt 0:06:30]} Bxd7 {[%emt 0:00:15]} 40. Bd5 {[%emt 0:00:53]} Be6 {[%emt 0:08:20]} 41. Bb7 {[%emt 0:36:55]} Kd7 {[%emt 0:30:46]} 42. Kd3 {[%emt 0:00:00]} Bf6 {[%emt 0:00:00]} 43. g3 {[%emt 0:00:00]} 1/2-1/2

[Event "26th Zadar Open 2019"]
[Site "Zadar"]
[Date "2019.12.21"]
[Round "8.19"]
[White "Nester, Ihor"]
[Black "Ly, Dominik"]
[Result "0-1"]
[ECO "E06"]
[WhiteElo "2329"]
[BlackElo "2220"]
[Annotator "NA"]
[PlyCount "94"]
[EventDate "2019.12.15"]
[EventType "swiss"]
[EventCountry "CRO"]
[SourceTitle "playchess.com"]
[Source "ChessBase"]
[SourceQuality "1"]
[TimeControl "40/5400+30:1800+30"]

1. Nf3 {[%emt 0:00:30]} d5 {[%emt 0:09:30]} 2. d4 {[%emt 0:00:00]} Nf6 {[%emt 0:00:00]} 3. c4 {[%emt 0:00:00]} e6 {[%emt 0:00:00]} 4. g3 {[%emt 0:00:00]} Be7 {[%emt 0:00:30]} 5. Bg2 {[%emt 0:00:00]} O-O {[%emt 0:00:00]} 6. O-O {[%emt 0:00:00]} c6 {[%emt 0:00:00]} 7. Qc2 {[%emt 0:01:00]} b6 {[%emt 0:00:30]} 8. Nbd2 {[%emt 0:00:30]} Bb7 {[%emt 0:01:30]} 9. e4 {[%emt 0:00:30]} Na6 {[%emt 0:00:00]} 10. Rd1 {[%emt 0:08:30]} Nb4 {[%emt 0:19:00]} 11. Qb1 {[%emt 0:03:30]} dxc4 {[%emt 0:02:30]} 12. e5 {[%emt 0:09:30]} Nfd5 {[%emt 0:04:30]} 13. Nxc4 {[%emt 0:00:00]} h6 {[%emt 0:02:30]} 14. a3 {[%emt 0:09:00]} Na6 {[%emt 0:00:00]} 15. Qc2 {[%emt 0:07:30]} b5 {[%emt 0:15:00]} 16. Ncd2 {[%emt 0:06:30]} c5 {[%emt 0:03:30]} 17. Ne4 {[%emt 0:01:30]} Rc8 {[%emt 0:01:30]} 18. Qe2 {[%emt 0:00:30]} Qb6 {[%emt 0:07:30]} 19. dxc5 {[%emt 0:00:30]} Nxc5 {[%emt 0:00:30]} 20. Nd4 {[%emt 0:00:00]} Nxe4 {[%emt 0:07:30]} 21. Bxe4 {[%emt 0:01:00]} Rc4 {[%emt 0:00:30]} 22. Nf5 {[%emt 0:31:41]} Rxe4 {[%emt 0:13:37]} 23. Nxh6+ {[%emt 0:00:07]} gxh6 {[%emt 0:00:11]} 24. Qxe4 {[%emt 0:00:01]} Nf6 {[%emt 0:01:28]} 25. Qf4 {[%emt 0:01:47]} Qc6 {[%emt 0:00:46]} 26. Kf1 {[%emt 0:01:44]} Nh7 {[%emt 0:04:14]} 27. Qg4+ {[%emt 0:00:16]} Ng5 {[%emt 0:00:15]} 28. Bxg5 {[%emt 0:00:12]} hxg5 {[%emt 0:00:17]} 29. h4 {[%emt 0:02:07]} Rc8 {[%emt 0:03:58]} 30. f3 {[%emt 0:05:31]} Qxf3+ {[%emt 0:00:30]} 31. Qxf3 {[%emt 0:00:02]} Bxf3 {[%emt 0:00:09]} 32. Rd7 {[%emt 0:00:04]} Bc5 {[%emt 0:00:54]} 33. Rc1 {[%emt 0:00:41]} Rc6 {[%emt 0:00:14]} 34. hxg5 {[%emt 0:01:05]} Kg7 {[%emt 0:00:35]} 35. Rd3 {[%emt 0:03:30]} Bb6 {[%emt 0:01:45]} 36. Rxc6 {[%emt 0:02:10]} Bxc6 {[%emt 0:00:04]} 37. Rd6 {[%emt 0:00:08]} Bd5 {[%emt 0:00:13]} 38. Rd7 {[%emt 0:00:08]} Bd4 {[%emt 0:00:38]} 39. b4 {[%emt 0:00:05]} Bb6 {[%emt 0:01:01]} 40. Ke2 {[%emt 0:00:11]} Kg6 {[%emt 0:01:27]} 41. Kd3 {[%emt 0:01:30]} Bf2 {[%emt 0:02:44]} 42. Ke2 {[%emt 0:00:30]} Bxg3 {[%emt 0:02:30]} 43. Rxa7 {[%emt 0:00:30]} Bxe5 {[%emt 0:00:30]} 44. Ra5 {[%emt 0:00:30]} Bc4+ {[%emt 0:00:30]} 45. Ke3 {[%emt 0:00:00]} Bc3 {[%emt 0:00:30]} 46. Ra7 {[%emt 0:00:00]} e5 {[%emt 0:00:30]} 47. Ke4 {[%emt 0:00:30]} Kxg5 {[%emt 0:00:30]} 0-1

[Event "26th Zadar Open 2019"]
[Site "Zadar"]
[Date "2019.12.21"]
[Round "8.21"]
[White "Hrescak, Ivana"]
[Black "Sai Agni Jeevitesh, J."]
[Result "0-1"]
[ECO "E48"]
[WhiteElo "2194"]
[BlackElo "2301"]
[Annotator "NA"]
[PlyCount "74"]
[EventDate "2019.12.15"]
[EventType "swiss"]
[EventCountry "CRO"]
[SourceTitle "playchess.com"]
[Source "ChessBase"]
[SourceQuality "1"]
[TimeControl "40/5400+30:1800+30"]

1. d4 {[%emt 0:00:30]} Nf6 {[%emt 0:01:30]} 2. c4 {[%emt 0:00:00]} e6 {[%emt 0:00:00]} 3. Nc3 {[%emt 0:00:00]} Bb4 {[%emt 0:00:00]} 4. e3 {[%emt 0:00:00]} O-O {[%emt 0:00:30]} 5. Bd3 {[%emt 0:00:00]} b6 {[%emt 0:01:30]} 6. Nge2 {[%emt 0:00:30]} Bb7 {[%emt 0:00:30]} 7. O-O {[%emt 0:00:00]} d5 {[%emt 0:01:30]} 8. cxd5 {[%emt 0:03:00]} exd5 {[%emt 0:00:00]} 9. Ng3 {[%emt 0:01:30]} Nbd7 {[%emt 0:02:00]} 10. Bd2 {[%emt 0:02:30]} Re8 {[%emt 0:02:30]} 11. Rc1 {[%emt 0:09:30]} a6 {[%emt 0:01:30]} 12. a3 {[%emt 0:08:30]} Bf8 {[%emt 0:01:30]} 13. Re1 {[%emt 0:03:30]} c5 {[%emt 0:04:30]} 14. Bb1 {[%emt 0:03:30]} c4 {[%emt 0:06:30]} 15. e4 {[%emt 0:04:30]} dxe4 {[%emt 0:02:30]} 16. Ncxe4 {[%emt 0:00:00]} b5 {[%emt 0:04:30]} 17. Bg5 {[%emt 0:05:00]} Qb6 {[%emt 0:01:30]} 18. Qf3 {[%emt 0:09:30]} Nxe4 {[%emt 0:10:30]} 19. Nxe4 {[%emt 0:03:30]} g6 {[%emt 0:04:30]} 20. Qh3 {[%emt 0:06:30]} f5 {[%emt 0:04:30]} 21. Ng3 {[%emt 0:09:30]} Bg7 {[%emt 0:02:30]} 22. Red1 {[%emt 0:06:30]} Bxd4 {[%emt 0:07:30]} 23. Nxf5 {[%emt 0:07:43]} gxf5 {[%emt 0:05:30]} 24. Qxf5 {[%emt 0:01:32]} Nf8 {[%emt 0:00:30]} 25. Qg4 {[%emt 0:04:36]} Bg7 {[%emt 0:02:30]} 26. Qg3 {[%emt 0:02:42]} Kh8 {[%emt 0:02:30]} 27. Be3 {[%emt 0:01:25]} Qe6 {[%emt 0:03:30]} 28. h3 {[%emt 0:02:07]} Rad8 {[%emt 0:01:30]} 29. Qh4 {[%emt 0:00:14]} Rxd1+ {[%emt 0:02:30]} 30. Rxd1 {[%emt 0:00:30]} Qf6 {[%emt 0:00:30]} 31. Bg5 {[%emt 0:00:30]} Qxb2 {[%emt 0:00:30]} 32. Bf5 {[%emt 0:03:17]} Qe5 {[%emt 0:02:30]} 33. Bd7 {[%emt 0:00:54]} Nxd7 {[%emt 0:01:30]} 34. Rxd7 {[%emt 0:00:09]} Bc6 {[%emt 0:05:25]} 35. Rxg7 {[%emt 0:00:34]} Kxg7 {[%emt 0:00:36]} 36. Qh6+ {[%emt 0:00:34]} Kf7 {[%emt 0:00:32]} 37. f4 {[%emt 0:01:24]} Qe4 {[%emt 0:00:55]} 0-1

[Event "26th Zadar Open 2019"]
[Site "Zadar"]
[Date "2019.12.21"]
[Round "8.23"]
[White "Sahil, Tickoo"]
[Black "de Francesco, Klaus"]
[Result "1-0"]
[ECO "D02"]
[WhiteElo "2259"]
[BlackElo "2273"]
[Annotator "NA"]
[PlyCount "53"]
[EventDate "2019.12.15"]
[EventType "swiss"]
[EventCountry "CRO"]
[SourceTitle "playchess.com"]
[Source "ChessBase"]
[SourceQuality "1"]
[TimeControl "40/5400+30:1800+30"]

1. d4 {[%emt 0:00:30]} Nf6 {[%emt 0:00:30]} 2. Nf3 {[%emt 0:00:00]} e6 {[%emt 0:00:00]} 3. Bf4 {[%emt 0:04:00]} d5 {[%emt 0:00:00]} 4. e3 {[%emt 0:00:30]} c5 {[%emt 0:00:30]} 5. c3 {[%emt 0:00:30]} Bd6 {[%emt 0:00:30]} 6. Bg3 {[%emt 0:00:30]} O-O {[%emt 0:00:30]} 7. Nbd2 {[%emt 0:00:30]} Qc7 {[%emt 0:00:00]} 8. Ne5 {[%emt 0:02:30]} Ne4 {[%emt 0:00:00]} 9. Nxe4 {[%emt 0:04:30]} dxe4 {[%emt 0:01:30]} 10. Nc4 {[%emt 0:04:30]} Bxg3 {[%emt 0:00:30]} 11. hxg3 {[%emt 0:00:30]} g6 {[%emt 0:01:30]} 12. dxc5 {[%emt 0:10:30]} Qxc5 {[%emt 0:04:30]} 13. Qd6 {[%emt 0:02:30]} Nd7 {[%emt 0:09:30]} 14. Qxc5 {[%emt 0:02:30]} Nxc5 {[%emt 0:00:30]} 15. O-O-O {[%emt 0:00:30]} a5 {[%emt 0:01:30]} 16. Nd6 {[%emt 0:04:30]} Bd7 {[%emt 0:02:30]} 17. Nxb7 {[%emt 0:03:30]} Nxb7 {[%emt 0:02:30]} 18. Rxd7 {[%emt 0:00:30]} Rab8 {[%emt 0:00:30]} 19. Rc7 {[%emt 0:05:30]} Rfd8 {[%emt 0:02:30]} 20. Be2 {[%emt 0:01:30]} Rd5 {[%emt 0:00:00]} 21. Rd1 {[%emt 0:03:30]} Rf5 {[%emt 0:00:00]} 22. f4 {[%emt 0:00:30]} h5 {[%emt 0:01:30]} 23. Rd4 {[%emt 0:06:30]} Nc5 {[%emt 0:00:30]} 24. g4 {[%emt 0:01:30]} hxg4 {[%emt 0:01:30]} 25. Bxg4 {[%emt 0:00:30]} Rd5 {[%emt 0:00:30]} 26. Rxd5 {[%emt 0:00:30]} exd5 {[%emt 0:00:00]} 27. Rxc5 {[%emt 0:00:30]} 1-0

[Event "26th Zadar Open 2019"]
[Site "Zadar"]
[Date "2019.12.21"]
[Round "8.24"]
[White "Deglmann, Ludwig"]
[Black "Gelbenegger, Patrick"]
[Result "1-0"]
[ECO "D03"]
[WhiteElo "2261"]
[BlackElo "2267"]
[Annotator "NA"]
[PlyCount "71"]
[EventDate "2019.12.15"]
[EventType "swiss"]
[EventCountry "CRO"]
[SourceTitle "playchess.com"]
[Source "ChessBase"]
[SourceQuality "1"]
[TimeControl "40/5400+30:1800+30"]

1. d4 {[%emt 0:00:30]} Nf6 {[%emt 0:10:30]} 2. Nf3 {[%emt 0:00:30]} e6 {[%emt 0:00:30]} 3. Bg5 {[%emt 0:00:30]} Be7 {[%emt 0:01:30]} 4. Nbd2 {[%emt 0:03:30]} d5 {[%emt 0:06:30]} 5. e3 {[%emt 0:03:30]} O-O {[%emt 0:03:30]} 6. Bd3 {[%emt 0:01:30]} c5 {[%emt 0:02:30]} 7. c3 {[%emt 0:06:30]} Qb6 {[%emt 0:04:30]} 8. Rb1 {[%emt 0:09:30]} Nc6 {[%emt 0:03:30]} 9. O-O {[%emt 0:08:30]} Qc7 {[%emt 0:02:30]} 10. Qe2 {[%emt 0:18:30]} e5 {[%emt 0:07:30]} 11. e4 {[%emt 0:02:30]} exd4 {[%emt 0:12:30]} 12. exd5 {[%emt 0:03:30]} dxc3 {[%emt 0:03:30]} 13. bxc3 {[%emt 0:03:30]} Nxd5 {[%emt 0:14:30]} 14. Qe4 {[%emt 0:02:30]} g6 {[%emt 0:00:00]} 15. Qxd5 {[%emt 0:00:30]} Rd8 {[%emt 0:00:00]} 16. Qc4 {[%emt 0:07:30]} Be6 {[%emt 0:02:30]} 17. Qh4 {[%emt 0:00:30]} Rxd3 {[%emt 0:02:30]} 18. Ne4 {[%emt 0:00:30]} h5 {[%emt 0:07:08]} 19. Bxe7 {[%emt 0:07:54]} Nxe7 {[%emt 0:02:36]} 20. Qg5 {[%emt 0:03:06]} Nf5 {[%emt 0:03:31]} 21. Rfe1 {[%emt 0:04:09]} Kf8 {[%emt 0:03:31]} 22. Nf6 {[%emt 0:01:23]} Rd6 {[%emt 0:02:19]} 23. Re5 {[%emt 0:04:34]} Rad8 {[%emt 0:01:13]} 24. Rbe1 {[%emt 0:00:06]} Rd1 {[%emt 0:01:35]} 25. h3 {[%emt 0:00:57]} Rxe1+ {[%emt 0:00:18]} 26. Rxe1 {[%emt 0:00:05]} Qc6 {[%emt 0:01:44]} 27. Ne5 {[%emt 0:00:51]} Qc7 {[%emt 0:00:14]} 28. g4 {[%emt 0:00:28]} hxg4 {[%emt 0:00:36]} 29. hxg4 {[%emt 0:00:10]} Nd6 {[%emt 0:00:40]} 30. Qh6+ {[%emt 0:01:25]} Ke7 {[%emt 0:00:12]} 31. Qg7 {[%emt 0:02:19]} Ne8 {[%emt 0:00:39]} 32. Ng8+ {[%emt 0:00:37]} Kd6 {[%emt 0:00:31]} 33. Qf8+ {[%emt 0:00:57]} Kd5 {[%emt 0:00:30]} 34. Ne7+ {[%emt 0:00:31]} Kd6 {[%emt 0:00:35]} 35. Nf5+ {[%emt 0:00:47]} Kd5 {[%emt 0:00:32]} 36. c4# {[%emt 0:00:14]} 1-0

[Event "26th Zadar Open 2019"]
[Site "Zadar"]
[Date "2019.12.21"]
[Round "8.25"]
[White "Sutkovic, Damir"]
[Black "Khalakhan, Jurij"]
[Result "0-1"]
[ECO "A51"]
[WhiteElo "2292"]
[BlackElo "2240"]
[Annotator "NA"]
[PlyCount "64"]
[EventDate "2019.12.15"]
[EventType "swiss"]
[EventCountry "CRO"]
[SourceTitle "playchess.com"]
[Source "ChessBase"]
[SourceQuality "1"]
[TimeControl "40/5400+30:1800+30"]

1. d4 {[%emt 0:00:30]} Nf6 {[%emt 0:10:30]} 2. c4 {[%emt 0:00:00]} e5 {[%emt 0:00:30]} 3. e3 {[%emt 0:03:00]} exd4 {[%emt 0:03:30]} 4. exd4 {[%emt 0:00:00]} Bb4+ {[%emt 0:00:30]} 5. Bd2 {[%emt 0:01:00]} Bxd2+ {[%emt 0:00:30]} 6. Qxd2 {[%emt 0:01:30]} O-O {[%emt 0:00:30]} 7. Nc3 {[%emt 0:00:30]} Re8+ {[%emt 0:00:30]} 8. Be2 {[%emt 0:00:30]} d5 {[%emt 0:00:30]} 9. cxd5 {[%emt 0:05:30]} Bg4 {[%emt 0:03:30]} 10. h3 {[%emt 0:07:30]} Bh5 {[%emt 0:02:30]} 11. O-O-O {[%emt 0:04:30]} Bg6 {[%emt 0:01:30]} 12. Bb5 {[%emt 0:05:30]} c6 {[%emt 0:02:30]} 13. dxc6 {[%emt 0:00:30]} Nxc6 {[%emt 0:00:00]} 14. Bd3 {[%emt 0:09:30]} Ne4 {[%emt 0:08:00]} 15. Bxe4 {[%emt 0:00:30]} Rxe4 {[%emt 0:00:30]} 16. Nxe4 {[%emt 0:01:30]} Bxe4 {[%emt 0:00:30]} 17. Ne2 {[%emt 0:00:30]} Rc8 {[%emt 0:00:30]} 18. Nc3 {[%emt 0:00:30]} Nb4 {[%emt 0:00:30]} 19. Qe3 {[%emt 0:00:30]} Nxa2+ {[%emt 0:05:30]} 20. Kd2 {[%emt 0:00:30]} Nxc3 {[%emt 0:04:30]} 21. bxc3 {[%emt 0:00:30]} Bg6 {[%emt 0:04:30]} 22. Ra1 {[%emt 0:07:30]} Qb6 {[%emt 0:06:30]} 23. Rhc1 {[%emt 0:00:00]} f6 {[%emt 0:04:30]} 24. Qf3 {[%emt 0:07:00]} Re8 {[%emt 0:03:30]} 25. Qd5+ {[%emt 0:01:30]} Kh8 {[%emt 0:03:30]} 26. Qa2 {[%emt 0:07:30]} Qb5 {[%emt 0:02:30]} 27. c4 {[%emt 0:00:30]} Qf5 {[%emt 0:01:30]} 28. Kc3 {[%emt 0:01:30]} Qd3+ {[%emt 0:00:30]} 29. Kb4 {[%emt 0:00:30]} Qxd4 {[%emt 0:01:30]} 30. Rd1 {[%emt 0:01:30]} a5+ {[%emt 0:01:30]} 31. Kxa5 {[%emt 0:07:30]} Qc5+ {[%emt 0:05:30]} 32. Ka4 {[%emt 0:00:30]} b5+ {[%emt 0:01:30]} 0-1

[Event "26th Zadar Open 2019"]
[Site "Zadar"]
[Date "2019.12.22"]
[Round "9.3"]
[White "Kozul, Zdenko"]
[Black "Galperin, Platon"]
[Result "1-0"]
[ECO "A80"]
[WhiteElo "2590"]
[BlackElo "2462"]
[Annotator "ChessBase"]
[PlyCount "79"]
[EventDate "2019.12.15"]
[EventType "swiss"]
[EventCountry "CRO"]
[SourceTitle "playchess.com"]
[Source "ChessBase"]
[SourceQuality "1"]
[TimeControl "40/5400+30:1800+30"]

1. d4 {[%emt 0:00:30]} f5 {[%emt 0:01:30]} 2. Nf3 {[%emt 0:05:30]} Nf6 {[%emt 0:00:00]} 3. Bf4 {[%emt 0:00:30]} g6 {[%emt 0:02:00]} 4. e3 {[%emt 0:00:00]} Bg7 {[%emt 0:00:00]} 5. h3 {[%emt 0:01:00]} d6 {[%emt 0:08:00]} 6. Be2 {[%emt 0:01:30]} e6 {[%emt 0:00:30]} 7. c4 {[%emt 0:01:30]} b6 {[%emt 0:14:30]} 8. Nc3 {[%emt 0:04:30]} O-O {[%emt 0:00:00]} 9. O-O {[%emt 0:00:30]} h6 {[%emt 0:03:00]} 10. Bh2 {[%emt 0:00:30]} Nbd7 {[%emt 0:04:30]} 11. b4 {[%emt 0:07:30]} Bb7 {[%emt 0:13:30]} 12. Rc1 {[%emt 0:12:30]} g5 {[%emt 0:08:30]} 13. c5 {[%emt 0:02:30]} g4 {[%emt 0:03:30]} 14. hxg4 {[%emt 0:01:30]} Nxg4 {[%emt 0:03:30]} 15. Bg3 {[%emt 0:06:30]} Ndf6 {[%emt 0:00:30]} 16. Nh4 {[%emt 0:04:30]} Kh7 {[%emt 0:06:30]} 17. cxd6 {[%emt 0:06:30]} cxd6 {[%emt 0:01:30]} 18. Nb5 {[%emt 0:00:30]} Ba6 {[%emt 0:05:30]} 19. Nc7 {[%emt 0:04:30]} Bxe2 {[%emt 0:00:30]} 20. Qxe2 {[%emt 0:00:30]} Qe7 {[%emt 0:00:30]} 21. Nxa8 {[%emt 0:00:30]} Rxa8 {[%emt 0:00:30]} 22. Qf3 {[%emt 0:12:30]} Rf8 {[%emt 0:02:30]} 23. Rc6 {[%emt 0:00:30]} Ne4 {[%emt 0:00:00]} 24. Rfc1 {[%emt 0:00:00]} Ngf6 {[%emt 0:01:36]} 25. Rc7 {[%emt 0:06:00]} Qe8 {[%emt 0:00:02]} 26. Bxd6 {[%emt 0:03:52]} Nxd6 {[%emt 0:00:33]} 27. Rxg7+ {[%emt 0:00:13]} Kxg7 {[%emt 0:00:19]} 28. Qg3+ {[%emt 0:00:08]} Ng4 {[%emt 0:00:53]} 29. Qxd6 {[%emt 0:00:06]} Qh5 {[%emt 0:00:28]} 30. Nf3 {[%emt 0:01:05]} Qe8 {[%emt 0:05:18]} 31. Ne5 {[%emt 0:01:14]} Nxe5 {[%emt 0:00:58]} 32. Qxe5+ {[%emt 0:00:06]} Kg8 {[%emt 0:00:23]} 33. b5 {[%emt 0:01:34]} f4 {[%emt 0:00:08]} 34. e4 {[%emt 0:05:40]} Qg6 {[%emt 0:00:27]} 35. Rc6 {[%emt 0:00:59]} Rf6 {[%emt 0:00:06]} 36. Rc8+ {[%emt 0:01:03]} Kh7 {[%emt 0:00:17]} 37. Rc7+ {[%emt 0:00:17]} Kg8 {[%emt 0:00:56]} 38. Rxa7 {[%emt 0:02:14]} h5 {[%emt 0:00:02]} 39. Ra3 {[%emt 0:02:09]} f3 {[%emt 0:00:23]} 40. Qg3 {[%emt 0:01:24]} 1-0

[Event "26th Zadar Open 2019"]
[Site "Zadar"]
[Date "2019.12.22"]
[Round "9.6"]
[White "Doric, Darko"]
[Black "Dixit, Nikhil"]
[Result "1/2-1/2"]
[ECO "E91"]
[WhiteElo "2492"]
[BlackElo "2318"]
[Annotator "ChessBase"]
[PlyCount "82"]
[EventDate "2019.12.15"]
[EventType "swiss"]
[EventCountry "CRO"]
[SourceTitle "playchess.com"]
[Source "ChessBase"]
[SourceQuality "1"]
[TimeControl "40/5400+30:1800+30"]

1. d4 {[%emt 0:00:30]} Nf6 {[%emt 0:05:30]} 2. c4 {[%emt 0:00:00]} g6 {[%emt 0:00:00]} 3. Nc3 {[%emt 0:00:00]} Bg7 {[%emt 0:00:00]} 4. e4 {[%emt 0:00:00]} d6 {[%emt 0:00:00]} 5. Be2 {[%emt 0:00:00]} O-O {[%emt 0:00:00]} 6. Be3 {[%emt 0:00:30]} c6 {[%emt 0:00:30]} 7. Nf3 {[%emt 0:01:30]} Bg4 {[%emt 0:06:30]} 8. O-O {[%emt 0:05:30]} Nfd7 {[%emt 0:00:00]} 9. Qd2 {[%emt 0:08:30]} Na6 {[%emt 0:02:00]} 10. h3 {[%emt 0:06:30]} Bxf3 {[%emt 0:00:00]} 11. Bxf3 {[%emt 0:00:00]} Nc7 {[%emt 0:01:00]} 12. Be2 {[%emt 0:02:00]} Ne6 {[%emt 0:10:30]} 13. d5 {[%emt 0:09:30]} Nec5 {[%emt 0:01:30]} 14. f3 {[%emt 0:11:30]} cxd5 {[%emt 0:04:30]} 15. exd5 {[%emt 0:09:30]} a5 {[%emt 0:03:30]} 16. Rfe1 {[%emt 0:03:30]} a4 {[%emt 0:02:30]} 17. Bf1 {[%emt 0:10:30]} Qa5 {[%emt 0:08:30]} 18. Rab1 {[%emt 0:02:30]} Ne5 {[%emt 0:13:30]} 19. f4 {[%emt 0:04:30]} Ned7 {[%emt 0:00:30]} 20. Bd4 {[%emt 0:00:30]} Nf6 {[%emt 0:06:30]} 21. Rbd1 {[%emt 0:03:30]} Rfe8 {[%emt 0:03:30]} 22. Nb5 {[%emt 0:01:47]} Qxd2 {[%emt 0:10:30]} 23. Rxd2 {[%emt 0:00:04]} Nfe4 {[%emt 0:01:50]} 24. Rdd1 {[%emt 0:00:16]} Rac8 {[%emt 0:01:44]} 25. g4 {[%emt 0:00:54]} f5 {[%emt 0:03:09]} 26. Bg2 {[%emt 0:01:40]} Kf7 {[%emt 0:01:47]} 27. Bf3 {[%emt 0:00:38]} Bxd4+ {[%emt 0:00:59]} 28. Rxd4 {[%emt 0:03:23]} Kf6 {[%emt 0:01:24]} 29. Rdd1 {[%emt 0:03:45]} h5 {[%emt 0:01:02]} 30. Kg2 {[%emt 0:01:05]} hxg4 {[%emt 0:00:56]} 31. hxg4 {[%emt 0:00:05]} Rh8 {[%emt 0:00:09]} 32. Nd4 {[%emt 0:08:11]} Rh4 {[%emt 0:01:48]} 33. Rh1 {[%emt 0:01:07]} Rch8 {[%emt 0:01:40]} 34. g5+ {[%emt 0:00:17]} Kf7 {[%emt 0:00:30]} 35. Rxh4 {[%emt 0:00:04]} Rxh4 {[%emt 0:00:03]} 36. Bxe4 {[%emt 0:02:55]} Nxe4 {[%emt 0:00:48]} 37. Ne6 {[%emt 0:00:27]} Rg4+ {[%emt 0:00:53]} 38. Kh2 {[%emt 0:00:11]} Rh4+ {[%emt 0:03:18]} 39. Kg2 {[%emt 0:00:04]} Rg4+ {[%emt 0:00:06]} 40. Kh2 {[%emt 0:01:55]} Rh4+ {[%emt 0:00:00]} 41. Kg2 {[%emt 0:08:12]} Rg4+ {[%emt 0:07:24]} 1/2-1/2

[Event "26th Zadar Open 2019"]
[Site "Zadar"]
[Date "2019.12.22"]
[Round "9.7"]
[White "Rogic, Davor"]
[Black "Mosesov, Danyil"]
[Result "1-0"]
[ECO "C70"]
[WhiteElo "2485"]
[BlackElo "2290"]
[Annotator "RC"]
[PlyCount "89"]
[EventDate "2019.12.15"]
[EventType "swiss"]
[EventCountry "CRO"]
[SourceTitle "playchess.com"]
[Source "ChessBase"]
[SourceQuality "1"]
[TimeControl "40/5400+30:1800+30"]

1. e4 {[%emt 0:00:30]} e5 {[%emt 0:02:30]} 2. Nf3 {[%emt 0:00:00]} Nc6 {[%emt 0:00:30]} 3. Bb5 {[%emt 0:00:00]} a6 {[%emt 0:00:30]} 4. Ba4 {[%emt 0:00:30]} b5 {[%emt 0:00:00]} 5. Bb3 {[%emt 0:00:30]} g6 {[%emt 0:00:00]} 6. a4 {[%emt 0:05:30]} b4 {[%emt 0:00:30]} 7. d4 {[%emt 0:02:30]} exd4 {[%emt 0:00:30]} 8. Nxd4 {[%emt 0:01:30]} Na5 {[%emt 0:00:00]} 9. Ba2 {[%emt 0:02:30]} Bg7 {[%emt 0:00:00]} 10. O-O {[%emt 0:02:30]} Ne7 {[%emt 0:00:00]} 11. Be3 {[%emt 0:24:30]} O-O {[%emt 0:01:00]} 12. Qc1 {[%emt 0:07:30]} Bb7 {[%emt 0:05:30]} 13. Nd2 {[%emt 0:09:30]} d5 {[%emt 0:05:30]} 14. Rd1 {[%emt 0:03:30]} dxe4 {[%emt 0:07:30]} 15. Ne6 {[%emt 0:05:30]} fxe6 {[%emt 0:01:30]} 16. Bxe6+ {[%emt 0:00:00]} Kh8 {[%emt 0:00:30]} 17. Nc4 {[%emt 0:00:00]} Qe8 {[%emt 0:05:30]} 18. Nxa5 {[%emt 0:00:30]} Bc8 {[%emt 0:00:30]} 19. Bb3 {[%emt 0:01:30]} Bg4 {[%emt 0:06:30]} 20. Re1 {[%emt 0:00:30]} Qd7 {[%emt 0:05:30]} 21. Nc4 {[%emt 0:05:30]} Qf5 {[%emt 0:04:30]} 22. Nd2 {[%emt 0:05:30]} Nc6 {[%emt 0:09:30]} 23. Nf1 {[%emt 0:02:31]} Qf6 {[%emt 0:19:30]} 24. Rb1 {[%emt 0:02:26]} Nd4 {[%emt 0:03:30]} 25. Ng3 {[%emt 0:02:17]} Rae8 {[%emt 0:01:30]} 26. Bc4 {[%emt 0:01:17]} h5 {[%emt 0:06:32]} 27. c3 {[%emt 0:02:05]} Nc6 {[%emt 0:00:16]} 28. Bd5 {[%emt 0:00:52]} Qd6 {[%emt 0:02:42]} 29. c4 {[%emt 0:04:30]} Ne5 {[%emt 0:02:59]} 30. Nxe4 {[%emt 0:01:06]} Qd7 {[%emt 0:00:01]} 31. Nc5 {[%emt 0:00:29]} Qe7 {[%emt 0:00:23]} 32. Bd4 {[%emt 0:00:46]} Qf6 {[%emt 0:01:56]} 33. Kh1 {[%emt 0:04:00]} Bf5 {[%emt 0:02:35]} 34. f4 {[%emt 0:00:24]} Bxb1 {[%emt 0:00:13]} 35. Bxe5 {[%emt 0:01:29]} Qh4 {[%emt 0:03:57]} 36. Qxb1 {[%emt 0:01:03]} Bxe5 {[%emt 0:00:33]} 37. fxe5 {[%emt 0:00:15]} Rf5 {[%emt 0:00:47]} 38. Nd3 {[%emt 0:00:42]} c6 {[%emt 0:02:09]} 39. Bxc6 {[%emt 0:01:10]} Ref8 {[%emt 0:00:02]} 40. h3 {[%emt 0:00:17]} Qxc4 {[%emt 0:01:26]} 41. Be4 {[%emt 0:30:50]} R5f7 {[%emt 0:30:29]} 42. Bxg6 {[%emt 0:01:50]} Rg7 {[%emt 0:00:00]} 43. Be4 {[%emt 0:00:00]} Rg3 {[%emt 0:00:00]} 44. Qd1 {[%emt 0:00:00]} Qf7 {[%emt 0:00:00]} 45. e6 {[%emt 0:00:00]} 1-0